[Event "Titled Tuesday Blitz July 25 Late 2023"]
[White "rikchessmx"]
[Black "Dwilewicz, Katarzyna"]
[BlackFideId "1148486"]
[WhiteElo "2269"]
[BlackElo "2398"]
[Result "1-0"]
[Round "7"]
[TimeControl "180+2"]
[Date "2023.07.25"]
[WhiteClock "0:01:29"]
[BlackClock "0:00:04"]
[Board "122"]

1. e4 {[%clk 0:03:00]}  c5 {[%clk 0:02:54]} 2. Nf3 {[%clk 0:03:00]}  d6 {[%clk 0:02:52]} 3. d4 {[%clk 0:03:00]}  cxd4 {[%clk 0:02:51]} 4. Nxd4 {[%clk 0:03:00]}  Nf6 {[%clk 0:02:50]} 5. Nc3 {[%clk 0:03:01]}  a6 {[%clk 0:02:50]} 6. f4 {[%clk 0:03:01]}  Nbd7 {[%clk 0:02:41]} 7. Be2 {[%clk 0:02:59]}  e5 {[%clk 0:02:34]} 8. Nb3 {[%clk 0:02:57]}  b5 {[%clk 0:02:27]} 9. a3 {[%clk 0:02:54]}  Bb7 {[%clk 0:02:27]} 10. Bf3 {[%clk 0:02:54]}  Be7 {[%clk 0:02:25]} 11. O-O {[%clk 0:02:53]}  exf4 {[%clk 0:02:22]} 12. Bxf4 {[%clk 0:02:52]}  Ne5 {[%clk 0:02:22]} 13. Kh1 {[%clk 0:02:50]}  O-O {[%clk 0:02:20]} 14. Qe2 {[%clk 0:02:50]}  Rc8 {[%clk 0:02:19]} 15. Rad1 {[%clk 0:02:49]}  Qc7 {[%clk 0:02:13]} 16. Nd4 {[%clk 0:02:46]}  Rfe8 {[%clk 0:02:08]} 17. Nf5 {[%clk 0:02:46]}  Bf8 {[%clk 0:02:05]} 18. Bg5 {[%clk 0:02:45]}  Nxf3 {[%clk 0:01:54]} 19. Bxf6 {[%clk 0:02:35]}  Ne5 {[%clk 0:01:41]} 20. Bxe5 {[%clk 0:02:33]}  Rxe5 {[%clk 0:01:37]} 21. Qg4 {[%clk 0:02:33]}  Kh8 {[%clk 0:01:33]} 22. Ne3 {[%clk 0:02:24]}  Rce8 {[%clk 0:01:30]} 23. Ned5 {[%clk 0:02:17]}  Bxd5 {[%clk 0:01:21]} 24. Nxd5 {[%clk 0:02:14]}  Qxc2 {[%clk 0:01:20]} 25. Rxf7 {[%clk 0:02:13]}  Rxe4 {[%clk 0:01:14]} 26. Rdf1 {[%clk 0:02:04]}  g6 {[%clk 0:00:45]} 27. Qg5 {[%clk 0:01:35]}  Bg7 {[%clk 0:00:31]} 28. Nf6 {[%clk 0:01:34]}  R8e5 {[%clk 0:00:17]} 29. Qh6 {[%clk 0:01:30]}  Rh5 {[%clk 0:00:04]} 30. Qxg7# {[%clk 0:01:29]} 1-0


[Site "https://www.chess.com"]

[Event "Titled Tuesday Blitz July 25 Late 2023"]
[White "Davidson, Kevin"]
[Black "Celestino, Rafael Teixeira"]
[WhiteFideId "2056810"]
[BlackFideId "2108925"]
[WhiteElo "2387"]
[BlackElo "2266"]
[Result "1-0"]
[Round "7"]
[TimeControl "180+2"]
[Date "2023.07.25"]
[WhiteClock "0:00:05"]
[BlackClock "0:00:00"]
[Board "123"]

1. e4 {[%clk 0:03:00]}  e5 {[%clk 0:02:59]} 2. Nf3 {[%clk 0:02:55]}  Nc6 {[%clk 0:02:59]} 3. Bb5 {[%clk 0:02:50]}  a6 {[%clk 0:02:58]} 4. Ba4 {[%clk 0:02:46]}  Nf6 {[%clk 0:02:56]} 5. O-O {[%clk 0:02:45]}  b5 {[%clk 0:02:56]} 6. Bb3 {[%clk 0:02:44]}  Be7 {[%clk 0:02:56]} 7. Re1 {[%clk 0:02:44]}  O-O {[%clk 0:02:55]} 8. a4 {[%clk 0:02:43]}  Rb8 {[%clk 0:02:54]} 9. c3 {[%clk 0:02:39]}  Re8 {[%clk 0:02:49]} 10. axb5 {[%clk 0:02:38]}  axb5 {[%clk 0:02:48]} 11. d4 {[%clk 0:02:36]}  exd4 {[%clk 0:02:41]} 12. cxd4 {[%clk 0:02:36]}  Bb4 {[%clk 0:02:39]} 13. Nc3 {[%clk 0:02:26]}  Bxc3 {[%clk 0:02:08]} 14. bxc3 {[%clk 0:02:27]}  Nxe4 {[%clk 0:01:56]} 15. Bxf7+ {[%clk 0:01:49]}  Kxf7 {[%clk 0:01:41]} 16. Rxe4 {[%clk 0:01:48]}  Rxe4 {[%clk 0:00:52]} 17. Ng5+ {[%clk 0:01:46]}  Kg8 {[%clk 0:00:53]} 18. Nxe4 {[%clk 0:01:14]}  d5 {[%clk 0:00:54]} 19. Nc5 {[%clk 0:01:00]}  b4 {[%clk 0:00:48]} 20. cxb4 {[%clk 0:00:37]}  Rxb4 {[%clk 0:00:49]} 21. Be3 {[%clk 0:00:35]}  Bf5 {[%clk 0:00:23]} 22. Qf3 {[%clk 0:00:34]}  Qf6 {[%clk 0:00:16]} 23. Qxd5+ {[%clk 0:00:32]}  Kf8 {[%clk 0:00:04]} 24. Ra8+ {[%clk 0:00:28]}  Nb8 {[%clk 0:00:04]} 25. h3 {[%clk 0:00:12]}  Qb6 {[%clk 0:00:01]} 26. Qxf5+ {[%clk 0:00:10]}  Ke7 {[%clk 0:00:02]} 27. Bg5+ {[%clk 0:00:10]}  Ke8 {[%clk 0:00:01]} 28. Qe5+ {[%clk 0:00:08]}  Kf7 {[%clk 0:00:00]} 29. Qf5+ {[%clk 0:00:05]} 1-0


[Site "https://www.chess.com"]

[Event "Titled Tuesday Blitz July 25 Late 2023"]
[White "Cardozo Munar, Carlos Eduardo"]
[Black "Lalanne, Pablo"]
[WhiteFideId "4409477"]
[BlackFideId "112151"]
[WhiteElo "2253"]
[BlackElo "2374"]
[Result "1-0"]
[Round "7"]
[TimeControl "180+2"]
[Date "2023.07.25"]
[WhiteClock "0:00:39"]
[BlackClock "0:00:01"]
[Board "126"]

1. e4 {[%clk 0:03:00]}  c5 {[%clk 0:02:58]} 2. Nf3 {[%clk 0:02:59]}  d6 {[%clk 0:02:58]} 3. Bc4 {[%clk 0:02:59]}  Nf6 {[%clk 0:02:58]} 4. Nc3 {[%clk 0:03:00]}  e6 {[%clk 0:02:57]} 5. O-O {[%clk 0:03:01]}  Be7 {[%clk 0:02:56]} 6. h3 {[%clk 0:03:01]}  O-O {[%clk 0:02:56]} 7. Re1 {[%clk 0:03:02]}  a6 {[%clk 0:02:57]} 8. a4 {[%clk 0:03:02]}  Nc6 {[%clk 0:02:57]} 9. d4 {[%clk 0:03:02]}  cxd4 {[%clk 0:02:57]} 10. Nxd4 {[%clk 0:03:02]}  Qc7 {[%clk 0:02:56]} 11. Bb3 {[%clk 0:03:02]}  Bd7 {[%clk 0:02:55]} 12. Bg5 {[%clk 0:03:02]}  Nxd4 {[%clk 0:02:52]} 13. Qxd4 {[%clk 0:03:01]}  Bc6 {[%clk 0:02:53]} 14. Rad1 {[%clk 0:03:01]}  Rfd8 {[%clk 0:02:51]} 15. Kh1 {[%clk 0:02:56]}  b5 {[%clk 0:02:49]} 16. axb5 {[%clk 0:02:54]}  axb5 {[%clk 0:02:50]} 17. f4 {[%clk 0:02:54]}  Qb7 {[%clk 0:02:37]} 18. f5 {[%clk 0:02:53]}  b4 {[%clk 0:02:35]} 19. fxe6 {[%clk 0:02:52]}  bxc3 {[%clk 0:02:30]} 20. exf7+ {[%clk 0:02:52]}  Kh8 {[%clk 0:02:26]} 21. bxc3 {[%clk 0:02:47]}  Nxe4 {[%clk 0:02:03]} 22. Bxe7 {[%clk 0:02:37]}  Qxe7 {[%clk 0:02:03]} 23. Bd5 {[%clk 0:02:18]}  Bxd5 {[%clk 0:01:25]} 24. Qxd5 {[%clk 0:02:17]}  Nf2+ {[%clk 0:00:32]} 25. Kg1 {[%clk 0:02:15]}  Qa7 {[%clk 0:00:24]} 26. Rd4 {[%clk 0:02:07]}  Rf8 {[%clk 0:00:18]} 27. Kxf2 {[%clk 0:01:52]}  Qxf7+ {[%clk 0:00:17]} 28. Qxf7 {[%clk 0:01:50]}  Rxf7+ {[%clk 0:00:18]} 29. Kg1 {[%clk 0:01:47]}  Rc7 {[%clk 0:00:18]} 30. Rxd6 {[%clk 0:01:42]}  Rxc3 {[%clk 0:00:18]} 31. Re2 {[%clk 0:01:42]}  h6 {[%clk 0:00:18]} 32. Rd7 {[%clk 0:01:40]}  Rac8 {[%clk 0:00:15]} 33. Ree7 {[%clk 0:01:39]}  Rg3 {[%clk 0:00:15]} 34. Kh2 {[%clk 0:01:36]}  Rg6 {[%clk 0:00:14]} 35. Re2 {[%clk 0:01:35]}  Kh7 {[%clk 0:00:14]} 36. Rdd2 {[%clk 0:01:30]}  Rgc6 {[%clk 0:00:12]} 37. Kg1 {[%clk 0:01:30]}  Rc3 {[%clk 0:00:10]} 38. Kf1 {[%clk 0:01:30]}  Ra8 {[%clk 0:00:09]} 39. Ke1 {[%clk 0:01:29]}  Ra1+ {[%clk 0:00:08]} 40. Rd1 {[%clk 0:01:30]}  Ra2 {[%clk 0:00:09]} 41. Rc1 {[%clk 0:01:26]}  Rb2 {[%clk 0:00:07]} 42. Kd2 {[%clk 0:01:26]}  Rcb3 {[%clk 0:00:05]} 43. Re3 {[%clk 0:01:23]}  Rb8 {[%clk 0:00:03]} 44. Rd3 {[%clk 0:01:23]}  Rc8 {[%clk 0:00:03]} 45. g4 {[%clk 0:01:18]}  Ra2 {[%clk 0:00:04]} 46. Kd1 {[%clk 0:01:18]}  Ra4 {[%clk 0:00:04]} 47. c3 {[%clk 0:01:17]}  Rf4 {[%clk 0:00:04]} 48. Rc2 {[%clk 0:01:13]}  Re8 {[%clk 0:00:04]} 49. Re2 {[%clk 0:01:02]}  Rf1+ {[%clk 0:00:04]} 50. Kd2 {[%clk 0:01:02]}  Ra8 {[%clk 0:00:04]} 51. c4 {[%clk 0:00:50]}  Ra2+ {[%clk 0:00:04]} 52. Ke3 {[%clk 0:00:50]}  Raa1 {[%clk 0:00:04]} 53. Rc2 {[%clk 0:00:50]}  Rae1+ {[%clk 0:00:04]} 54. Kd4 {[%clk 0:00:50]}  Rf4+ {[%clk 0:00:04]} 55. Kd5 {[%clk 0:00:49]}  h5 {[%clk 0:00:03]} 56. c5 {[%clk 0:00:46]}  hxg4 {[%clk 0:00:03]} 57. hxg4 {[%clk 0:00:47]}  Rxg4 {[%clk 0:00:03]} 58. c6 {[%clk 0:00:47]}  Re8 {[%clk 0:00:04]} 59. c7 {[%clk 0:00:46]}  Rc8 {[%clk 0:00:04]} 60. Rh3+ {[%clk 0:00:44]}  Kg6 {[%clk 0:00:03]} 61. Kd6 {[%clk 0:00:44]}  Ra4 {[%clk 0:00:03]} 62. Kd7 {[%clk 0:00:42]}  Raa8 {[%clk 0:00:03]} 63. Rf3 {[%clk 0:00:41]}  Kg5 {[%clk 0:00:03]} 64. Rg2+ {[%clk 0:00:40]}  Kh4 {[%clk 0:00:04]} 65. Rxg7 {[%clk 0:00:39]}  Kh5 {[%clk 0:00:01]} 66. Rh3# {[%clk 0:00:39]} 1-0


[Site "https://www.chess.com"]

[Event "Titled Tuesday Blitz July 25 Late 2023"]
[White "Villarreal, Agustin"]
[Black "Sariego Figueredo, Wilfredo"]
[WhiteFideId "125687"]
[BlackFideId "3500080"]
[WhiteElo "2361"]
[BlackElo "2246"]
[Result "0-1"]
[Round "7"]
[TimeControl "180+2"]
[Date "2023.07.25"]
[WhiteClock "0:00:00"]
[BlackClock "0:00:18"]
[Board "127"]

1. e4 {[%clk 0:03:00]}  c5 {[%clk 0:03:00]} 2. Nf3 {[%clk 0:03:01]}  a6 {[%clk 0:03:00]} 3. c3 {[%clk 0:02:57]}  e6 {[%clk 0:03:00]} 4. d4 {[%clk 0:02:49]}  d5 {[%clk 0:03:00]} 5. e5 {[%clk 0:02:42]}  Nc6 {[%clk 0:02:59]} 6. Be2 {[%clk 0:02:37]}  Qb6 {[%clk 0:02:57]} 7. O-O {[%clk 0:02:19]}  Bd7 {[%clk 0:02:56]} 8. a3 {[%clk 0:02:19]}  Rc8 {[%clk 0:02:55]} 9. b4 {[%clk 0:02:04]}  cxd4 {[%clk 0:02:51]} 10. cxd4 {[%clk 0:02:04]}  Nge7 {[%clk 0:02:48]} 11. Bb2 {[%clk 0:01:45]}  Nf5 {[%clk 0:02:45]} 12. g4 {[%clk 0:01:26]}  Nh6 {[%clk 0:02:44]} 13. h3 {[%clk 0:01:16]}  Be7 {[%clk 0:02:39]} 14. Nc3 {[%clk 0:01:16]}  O-O {[%clk 0:02:29]} 15. Na4 {[%clk 0:01:17]}  Qa7 {[%clk 0:02:26]} 16. Nc5 {[%clk 0:01:17]}  Bxc5 {[%clk 0:02:22]} 17. bxc5 {[%clk 0:01:11]}  Rb8 {[%clk 0:02:11]} 18. a4 {[%clk 0:00:50]}  b6 {[%clk 0:02:00]} 19. cxb6 {[%clk 0:00:45]}  Rxb6 {[%clk 0:02:01]} 20. Ba3 {[%clk 0:00:45]}  Nb4 {[%clk 0:01:56]} 21. Qd2 {[%clk 0:00:29]}  a5 {[%clk 0:01:54]} 22. Rac1 {[%clk 0:00:28]}  Bxa4 {[%clk 0:01:51]} 23. Rc5 {[%clk 0:00:26]}  Bd7 {[%clk 0:01:34]} 24. Rfc1 {[%clk 0:00:26]}  Rfb8 {[%clk 0:01:33]} 25. Nh4 {[%clk 0:00:21]}  Kh8 {[%clk 0:01:02]} 26. g5 {[%clk 0:00:18]}  Ng8 {[%clk 0:01:00]} 27. Rc7 {[%clk 0:00:17]}  R6b7 {[%clk 0:00:58]} 28. R7c5 {[%clk 0:00:17]}  Ne7 {[%clk 0:00:57]} 29. Bxb4 {[%clk 0:00:14]}  axb4 {[%clk 0:00:57]} 30. Bd3 {[%clk 0:00:14]}  g6 {[%clk 0:00:55]} 31. Qe2 {[%clk 0:00:09]}  b3 {[%clk 0:00:52]} 32. Nf3 {[%clk 0:00:07]}  b2 {[%clk 0:00:51]} 33. Rb1 {[%clk 0:00:08]}  Rc7 {[%clk 0:00:44]} 34. Rxc7 {[%clk 0:00:07]}  Qxc7 {[%clk 0:00:45]} 35. Kg2 {[%clk 0:00:08]}  Qc1 {[%clk 0:00:29]} 36. h4 {[%clk 0:00:05]}  Ba4 {[%clk 0:00:24]} 37. h5 {[%clk 0:00:03]}  Nf5 {[%clk 0:00:17]} 38. hxg6 {[%clk 0:00:00]}  hxg6 {[%clk 0:00:18]} 0-1


[Site "https://www.chess.com"]

[Event "Titled Tuesday Blitz July 25 Late 2023"]
[White "littlepinkyboy"]
[Black "Chlpik, Martin"]
[BlackFideId "14923351"]
[WhiteElo "2357"]
[BlackElo "2216"]
[Result "1-0"]
[Round "7"]
[TimeControl "180+2"]
[Date "2023.07.25"]
[WhiteClock "0:00:18"]
[BlackClock "0:00:00"]
[Board "129"]

1. Nf3 {[%clk 0:02:57]}  g6 {[%clk 0:03:00]} 2. g3 {[%clk 0:02:57]}  Bg7 {[%clk 0:03:00]} 3. Bg2 {[%clk 0:02:58]}  d6 {[%clk 0:03:01]} 4. O-O {[%clk 0:02:58]}  Nd7 {[%clk 0:03:01]} 5. d4 {[%clk 0:02:59]}  c6 {[%clk 0:03:01]} 6. c4 {[%clk 0:03:00]}  Rb8 {[%clk 0:03:00]} 7. Nc3 {[%clk 0:03:00]}  b5 {[%clk 0:03:00]} 8. cxb5 {[%clk 0:03:00]}  cxb5 {[%clk 0:03:01]} 9. b3 {[%clk 0:03:01]}  b4 {[%clk 0:03:01]} 10. Ne4 {[%clk 0:03:00]}  h6 {[%clk 0:03:00]} 11. Bb2 {[%clk 0:03:00]}  f5 {[%clk 0:03:00]} 12. Ned2 {[%clk 0:03:00]}  Ngf6 {[%clk 0:03:00]} 13. Nc4 {[%clk 0:02:59]}  O-O {[%clk 0:02:59]} 14. d5 {[%clk 0:02:57]}  Nb6 {[%clk 0:02:47]} 15. Nd4 {[%clk 0:02:51]}  Nxc4 {[%clk 0:02:37]} 16. bxc4 {[%clk 0:02:52]}  Qc7 {[%clk 0:02:34]} 17. Rc1 {[%clk 0:02:46]}  Ne4 {[%clk 0:02:28]} 18. Nb5 {[%clk 0:02:31]}  Qc5 {[%clk 0:02:16]} 19. Bxg7 {[%clk 0:02:25]}  Kxg7 {[%clk 0:02:16]} 20. Bxe4 {[%clk 0:02:25]}  fxe4 {[%clk 0:02:16]} 21. Qd4+ {[%clk 0:02:26]}  Qxd4 {[%clk 0:02:13]} 22. Nxd4 {[%clk 0:02:26]}  Bd7 {[%clk 0:02:05]} 23. c5 {[%clk 0:02:23]}  dxc5 {[%clk 0:02:04]} 24. Rxc5 {[%clk 0:02:24]}  Rfc8 {[%clk 0:02:03]} 25. Rfc1 {[%clk 0:02:21]}  Kf6 {[%clk 0:02:00]} 26. Nc6 {[%clk 0:02:00]}  Bxc6 {[%clk 0:01:57]} 27. dxc6 {[%clk 0:02:01]}  Rc7 {[%clk 0:01:42]} 28. R1c4 {[%clk 0:01:51]}  Rb6 {[%clk 0:01:41]} 29. Rxe4 {[%clk 0:01:39]}  Rcxc6 {[%clk 0:01:40]} 30. Rxc6+ {[%clk 0:01:39]}  Rxc6 {[%clk 0:01:41]} 31. Rxb4 {[%clk 0:01:40]}  Rc2 {[%clk 0:01:41]} 32. Ra4 {[%clk 0:01:40]}  Rxe2 {[%clk 0:01:38]} 33. Rxa7 {[%clk 0:01:38]}  h5 {[%clk 0:01:38]} 34. Kg2 {[%clk 0:01:37]}  Re1 {[%clk 0:01:30]} 35. a4 {[%clk 0:01:23]}  h4 {[%clk 0:01:26]} 36. gxh4 {[%clk 0:01:13]}  Re4 {[%clk 0:01:25]} 37. Kg3 {[%clk 0:01:12]}  Rb4 {[%clk 0:01:26]} 38. a5 {[%clk 0:01:11]}  Rb3+ {[%clk 0:01:25]} 39. f3 {[%clk 0:01:10]}  Rb1 {[%clk 0:01:25]} 40. Ra8 {[%clk 0:01:07]}  Rg1+ {[%clk 0:01:24]} 41. Kf2 {[%clk 0:01:06]}  Rh1 {[%clk 0:01:19]} 42. Kg2 {[%clk 0:01:02]}  Ra1 {[%clk 0:01:19]} 43. a6 {[%clk 0:01:03]}  Ra2+ {[%clk 0:01:18]} 44. Kg3 {[%clk 0:01:02]}  Ra4 {[%clk 0:01:18]} 45. Kf2 {[%clk 0:00:49]}  Kg7 {[%clk 0:01:13]} 46. a7 {[%clk 0:00:30]}  Kf7 {[%clk 0:01:05]} 47. Ke3 {[%clk 0:00:24]}  Kg7 {[%clk 0:01:04]} 48. f4 {[%clk 0:00:22]}  Kf7 {[%clk 0:01:03]} 49. Kd3 {[%clk 0:00:22]}  Kg7 {[%clk 0:01:03]} 50. Kc3 {[%clk 0:00:23]}  Kf7 {[%clk 0:01:02]} 51. Kb3 {[%clk 0:00:23]}  Ra1 {[%clk 0:00:59]} 52. Kb4 {[%clk 0:00:24]}  Rb1+ {[%clk 0:00:56]} 53. Kc4 {[%clk 0:00:24]}  Rc1+ {[%clk 0:00:56]} 54. Kd5 {[%clk 0:00:24]}  Rd1+ {[%clk 0:00:56]} 55. Ke4 {[%clk 0:00:19]}  Re1+ {[%clk 0:00:56]} 56. Kf3 {[%clk 0:00:15]}  Rf1+ {[%clk 0:00:55]} 57. Kg2 {[%clk 0:00:15]}  Ra1 {[%clk 0:00:56]} 58. h5 {[%clk 0:00:12]}  gxh5 {[%clk 0:00:55]} 59. Kg3 {[%clk 0:00:13]}  Ra2 {[%clk 0:00:50]} 60. h3 {[%clk 0:00:08]}  Ra3+ {[%clk 0:00:50]} 61. Kf2 {[%clk 0:00:05]}  Kg7 {[%clk 0:00:49]} 62. Ke2 {[%clk 0:00:05]}  Kf7 {[%clk 0:00:43]} 63. Kd2 {[%clk 0:00:06]}  Ra1 {[%clk 0:00:37]} 64. Kc3 {[%clk 0:00:04]}  Kg7 {[%clk 0:00:32]} 65. Kd4 {[%clk 0:00:04]}  Kf7 {[%clk 0:00:29]} 66. Ke5 {[%clk 0:00:04]}  Ra5+ {[%clk 0:00:28]} 67. Ke4 {[%clk 0:00:05]}  Ra4+ {[%clk 0:00:27]} 68. Kf3 {[%clk 0:00:03]}  Ra1 {[%clk 0:00:27]} 69. f5 {[%clk 0:00:02]}  Kg7 {[%clk 0:00:23]} 70. Kf4 {[%clk 0:00:02]}  Rf1+ {[%clk 0:00:21]} 71. Kg5 {[%clk 0:00:02]}  Ra1 {[%clk 0:00:18]} 72. Kxh5 {[%clk 0:00:03]}  Ra5 {[%clk 0:00:15]} 73. Kg5 {[%clk 0:00:03]}  e6 {[%clk 0:00:14]} 74. Kf4 {[%clk 0:00:02]}  Rxf5+ {[%clk 0:00:12]} 75. Kg4 {[%clk 0:00:02]}  Ra5 {[%clk 0:00:12]} 76. h4 {[%clk 0:00:03]}  Ra4+ {[%clk 0:00:10]} 77. Kg5 {[%clk 0:00:02]}  Ra5+ {[%clk 0:00:10]} 78. Kf4 {[%clk 0:00:03]}  Kh7 {[%clk 0:00:07]} 79. h5 {[%clk 0:00:02]}  Kg7 {[%clk 0:00:07]} 80. h6+ {[%clk 0:00:02]}  Kh7 {[%clk 0:00:07]} 81. Ke4 {[%clk 0:00:03]}  Ra4+ {[%clk 0:00:04]} 82. Ke5 {[%clk 0:00:02]}  Ra1 {[%clk 0:00:03]} 83. Kxe6 {[%clk 0:00:01]}  Re1+ {[%clk 0:00:02]} 84. Kf6 {[%clk 0:00:02]}  Rf1+ {[%clk 0:00:02]} 85. Ke5 {[%clk 0:00:03]}  Re1+ {[%clk 0:00:02]} 86. Kd6 {[%clk 0:00:03]}  Rd1+ {[%clk 0:00:03]} 87. Kc5 {[%clk 0:00:04]}  Rc1+ {[%clk 0:00:03]} 88. Kd4 {[%clk 0:00:04]}  Rd1+ {[%clk 0:00:03]} 89. Ke3 {[%clk 0:00:04]}  Re1+ {[%clk 0:00:03]} 90. Kf2 {[%clk 0:00:03]}  Ra1 {[%clk 0:00:04]} 91. Kg3 {[%clk 0:00:04]}  Rg1+ {[%clk 0:00:03]} 92. Kf4 {[%clk 0:00:05]}  Ra1 {[%clk 0:00:04]} 93. Kg5 {[%clk 0:00:05]}  Rg1+ {[%clk 0:00:04]} 94. Kf6 {[%clk 0:00:06]}  Rf1+ {[%clk 0:00:04]} 95. Ke7 {[%clk 0:00:07]}  Re1+ {[%clk 0:00:05]} 96. Kd7 {[%clk 0:00:07]}  Rd1+ {[%clk 0:00:05]} 97. Kc7 {[%clk 0:00:08]}  Rc1+ {[%clk 0:00:05]} 98. Kb7 {[%clk 0:00:09]}  Rb1+ {[%clk 0:00:05]} 99. Ka6 {[%clk 0:00:09]}  Ra1+ {[%clk 0:00:05]} 100. Kb6 {[%clk 0:00:10]}  Rb1+ {[%clk 0:00:06]} 101. Ka5 {[%clk 0:00:10]}  Ra1+ {[%clk 0:00:06]} 102. Kb5 {[%clk 0:00:11]}  Rb1+ {[%clk 0:00:06]} 103. Ka4 {[%clk 0:00:11]}  Ra1+ {[%clk 0:00:06]} 104. Kb4 {[%clk 0:00:12]}  Rb1+ {[%clk 0:00:07]} 105. Ka3 {[%clk 0:00:13]}  Ra1+ {[%clk 0:00:07]} 106. Kb3 {[%clk 0:00:13]}  Ra6 {[%clk 0:00:05]} 107. Kb4 {[%clk 0:00:08]}  Ra1 {[%clk 0:00:04]} 108. Kc5 {[%clk 0:00:08]}  Rc1+ {[%clk 0:00:04]} 109. Kd6 {[%clk 0:00:09]}  Rd1+ {[%clk 0:00:05]} 110. Ke7 {[%clk 0:00:10]}  Re1+ {[%clk 0:00:05]} 111. Kf8 {[%clk 0:00:11]}  Rf1+ {[%clk 0:00:05]} 112. Ke8 {[%clk 0:00:11]}  Re1+ {[%clk 0:00:04]} 113. Kf7 {[%clk 0:00:12]}  Rf1+ {[%clk 0:00:04]} 114. Ke6 {[%clk 0:00:13]}  Re1+ {[%clk 0:00:04]} 115. Kf5 {[%clk 0:00:14]}  Rf1+ {[%clk 0:00:04]} 116. Kg4 {[%clk 0:00:14]}  Rg1+ {[%clk 0:00:04]} 117. Kh3 {[%clk 0:00:15]}  Rh1+ {[%clk 0:00:04]} 118. Kg2 {[%clk 0:00:14]}  Ra1 {[%clk 0:00:05]} 119. Re8 {[%clk 0:00:15]}  Rxa7 {[%clk 0:00:04]} 120. Re6 {[%clk 0:00:15]}  Ra5 {[%clk 0:00:03]} 121. Kg3 {[%clk 0:00:15]}  Rh5 {[%clk 0:00:02]} 122. Kg4 {[%clk 0:00:16]}  Rxh6 {[%clk 0:00:03]} 123. Re7+ {[%clk 0:00:16]}  Kg6 {[%clk 0:00:02]} 124. Ra7 {[%clk 0:00:16]}  Rh7 {[%clk 0:00:02]} 125. Ra6+ {[%clk 0:00:16]}  Kg7 {[%clk 0:00:02]} 126. Kg5 {[%clk 0:00:17]}  Kg8 {[%clk 0:00:01]} 127. Ra8+ {[%clk 0:00:17]}  Kg7 {[%clk 0:00:01]} 128. Ra7+ {[%clk 0:00:18]}  Kg8 {[%clk 0:00:01]} 129. Ra3 {[%clk 0:00:19]}  Kg7 {[%clk 0:00:00]} 130. Ra8 {[%clk 0:00:18]} 1-0


[Site "https://www.chess.com"]

[Event "Titled Tuesday Blitz July 25 Late 2023"]
[White "Winslow, Elliott"]
[Black "Campos, Maria Jose"]
[WhiteFideId "2002523"]
[BlackFideId "146803"]
[WhiteElo "2189"]
[BlackElo "2355"]
[Result "0-1"]
[Round "7"]
[TimeControl "180+2"]
[Date "2023.07.25"]
[WhiteClock "0:00:49"]
[BlackClock "0:02:12"]
[Board "130"]

1. d4 {[%clk 0:03:00]}  Nf6 {[%clk 0:02:50]} 2. c4 {[%clk 0:02:59]}  e6 {[%clk 0:02:51]} 3. Nf3 {[%clk 0:02:59]}  d5 {[%clk 0:02:49]} 4. Nc3 {[%clk 0:02:58]}  dxc4 {[%clk 0:02:49]} 5. e3 {[%clk 0:02:57]}  a6 {[%clk 0:02:49]} 6. Bxc4 {[%clk 0:02:54]}  b5 {[%clk 0:02:48]} 7. Bb3 {[%clk 0:02:54]}  c5 {[%clk 0:02:48]} 8. O-O {[%clk 0:02:53]}  Bb7 {[%clk 0:02:48]} 9. Qe2 {[%clk 0:02:45]}  Nbd7 {[%clk 0:02:47]} 10. Rd1 {[%clk 0:02:43]}  Qc7 {[%clk 0:02:47]} 11. e4 {[%clk 0:02:32]}  cxd4 {[%clk 0:02:46]} 12. Nxd4 {[%clk 0:02:25]}  Nc5 {[%clk 0:02:38]} 13. f3 {[%clk 0:02:03]}  Be7 {[%clk 0:02:36]} 14. Bc2 {[%clk 0:01:59]}  O-O {[%clk 0:02:33]} 15. Be3 {[%clk 0:01:58]}  Rfd8 {[%clk 0:02:33]} 16. Rac1 {[%clk 0:01:51]}  Rac8 {[%clk 0:02:33]} 17. Bf2 {[%clk 0:01:46]}  Qb8 {[%clk 0:02:32]} 18. e5 {[%clk 0:01:42]}  Nd5 {[%clk 0:02:28]} 19. Nxd5 {[%clk 0:01:33]}  Rxd5 {[%clk 0:02:26]} 20. f4 {[%clk 0:01:23]}  b4 {[%clk 0:02:21]} 21. Nf3 {[%clk 0:01:08]}  Rcd8 {[%clk 0:02:20]} 22. h4 {[%clk 0:01:00]}  a5 {[%clk 0:02:19]} 23. Ng5 {[%clk 0:00:56]}  h6 {[%clk 0:02:15]} 24. Ne4 {[%clk 0:00:53]}  Nxe4 {[%clk 0:02:12]} 25. Qxe4 {[%clk 0:00:49]}  Rxd1+ {[%clk 0:02:12]} 0-1


[Site "https://www.chess.com"]

[Event "Titled Tuesday Blitz July 25 Late 2023"]
[White "Winkels, Marcel"]
[Black "Zhou, Qiyu"]
[WhiteFideId "1003887"]
[BlackFideId "505161"]
[WhiteElo "2071"]
[BlackElo "2340"]
[Result "0-1"]
[Round "7"]
[TimeControl "180+2"]
[Date "2023.07.25"]
[WhiteClock "0:00:16"]
[BlackClock "0:00:55"]
[Board "133"]

1. e4 {[%clk 0:03:00]}  e5 {[%clk 0:02:59]} 2. Nf3 {[%clk 0:03:00]}  Nc6 {[%clk 0:02:59]} 3. Bb5 {[%clk 0:03:00]}  a6 {[%clk 0:02:59]} 4. Ba4 {[%clk 0:03:00]}  Nf6 {[%clk 0:02:59]} 5. d3 {[%clk 0:02:58]}  b5 {[%clk 0:02:56]} 6. Bb3 {[%clk 0:02:58]}  Be7 {[%clk 0:02:55]} 7. O-O {[%clk 0:02:57]}  O-O {[%clk 0:02:56]} 8. a3 {[%clk 0:02:56]}  d6 {[%clk 0:02:56]} 9. h3 {[%clk 0:02:55]}  h6 {[%clk 0:02:53]} 10. Nc3 {[%clk 0:02:55]}  Be6 {[%clk 0:02:53]} 11. Nd5 {[%clk 0:02:54]}  Na5 {[%clk 0:02:48]} 12. Ba2 {[%clk 0:02:53]}  c6 {[%clk 0:02:45]} 13. Nxe7+ {[%clk 0:02:40]}  Qxe7 {[%clk 0:02:46]} 14. Be3 {[%clk 0:02:40]}  Nb7 {[%clk 0:02:42]} 15. Qd2 {[%clk 0:02:28]}  Nh7 {[%clk 0:02:37]} 16. Nh2 {[%clk 0:02:26]}  Kh8 {[%clk 0:02:34]} 17. f4 {[%clk 0:02:26]}  Bxa2 {[%clk 0:02:23]} 18. Rxa2 {[%clk 0:02:25]}  exf4 {[%clk 0:02:21]} 19. Bxf4 {[%clk 0:02:20]}  Qe6 {[%clk 0:02:18]} 20. Raa1 {[%clk 0:02:17]}  d5 {[%clk 0:02:12]} 21. Rae1 {[%clk 0:02:15]}  d4 {[%clk 0:02:10]} 22. Nf3 {[%clk 0:02:06]}  c5 {[%clk 0:02:09]} 23. Qf2 {[%clk 0:02:01]}  Nd6 {[%clk 0:02:02]} 24. Qg3 {[%clk 0:02:00]}  Rad8 {[%clk 0:02:00]} 25. Bxd6 {[%clk 0:01:51]}  Rxd6 {[%clk 0:02:00]} 26. Nh4 {[%clk 0:01:51]}  Rd7 {[%clk 0:01:52]} 27. Nf5 {[%clk 0:01:50]}  f6 {[%clk 0:01:39]} 28. e5 {[%clk 0:01:29]}  fxe5 {[%clk 0:01:35]} 29. Rxe5 {[%clk 0:01:22]}  Qc6 {[%clk 0:01:15]} 30. Ne7 {[%clk 0:01:04]}  Rxf1+ {[%clk 0:01:07]} 31. Kxf1 {[%clk 0:01:04]}  Rxe7 {[%clk 0:01:06]} 32. Rf5 {[%clk 0:00:40]}  Qe6 {[%clk 0:00:56]} 33. Qb8+ {[%clk 0:00:16]}  Re8 {[%clk 0:00:55]} 0-1


[Site "https://www.chess.com"]